Cogmind - Beta 13 @@@ ROGUE MODE // 2024.07.28 @ 13:45:27 Player: LegoMDS Result: Destroyed by P-60 Hacker with Shock Rifle Performance ------------- Evolutions (3) 1500 Regions Visited (7) 1400 Robots Destroyed (85) 425 Value Destroyed (2543) 2543 Prototype IDs (31) 620 Alien Tech Used (0) 0 Bonus (379) 379 TOTAL SCORE: 6867 Bonus ------- High Alert Combat Kills 79 Aligned with FarCom 300 Cogmind --------- Core Integrity 0/700 Matter 290/300 Energy 85/100 System Corruption 5% Temperature Cool (0) Movement Core (50) Location -7/Factory Parts ------- > --- POWER (2) -------- (None) > --- PROPULSION (4) --- (None) > --- UTILITY (4) ------ Core Analyzer System Shield > --- WEAPON (3) ------- Longsword +1 > --- INVENTORY (5) ---- Structural Scanner Hacking Suite Mining Laser Peak State ------------ > --- POWER ------------ Improved Deuterium Engine Micro Nuclear Core > --- PROPULSION ------- Aluminum Leg Improved Titanium Leg Improved Titanium Leg Improved Titanium Leg > --- UTILITY ---------- Improved Targeting Computer Weapon Cycler System Shield Long-range Tractor Beam > --- WEAPON ----------- Flak Gun Precision Assault Rifle Great Axe > --- INVENTORY -------- Structural Scanner Hacking Suite Mining Laser Longsword +1 [Rating: 47] Favorites ----------- Power Improved Ion Engine Engine Improved Ion Engine Power Core Micro Nuclear Core Propulsion Aluminum Leg Leg Aluminum Leg Flight Unit Improved Flight Unit Utility Medium Storage Unit Device Structural Scanner Storage Medium Storage Unit Processor Targeting Computer Hackware System Shield Protection Hardened Light Armor Plating Weapon Heavy Assault Rifle Energy Gun Improved EM Shotgun Energy Cannon Particle Cannon Ballistic Gun Heavy Assault Rifle Ballistic Cannon Light Cannon Launcher Rocket Launcher Slashing Weapon Great Axe Build | -11 -10 -9 -9 -9 -8 -8 -7 ------- Run | Yrd Mat Mat Min Exi Min Mat Fac Slots Evolved 6 | . . 2 . . . 2 2 Power 1 | . . . . . . . 1 Propulsion 2 | . . 1 . . . . 1 Utility 2 | . . 1 . . . 1 . Weapon 1 | . . . . . . 1 . Parts Attached 100 | 6 7 20 4 1 . 31 31 Power 12 | 1 1 2 1 . . 4 3 Engine 10 | 1 1 2 . . . 4 2 Core 2 | . . . 1 . . . 1 Reactor . | . . . . . . . . Propulsion 34 | 2 3 9 . 1 . 10 9 Treads . | . . . . . . . . Leg 33 | 2 3 8 . 1 . 10 9 Wheel . | . . . . . . . . Hover . | . . . . . . . . Flight 1 | . . 1 . . . . . Utility 14 | 1 2 1 . . . 4 6 Device 6 | . 1 . . . . 3 2 Storage 2 | 1 1 . . . . . . Processor 3 | . . 1 . . . . 2 Hackware 1 | . . . . . . . 1 Protection 2 | . . . . . . 1 1 Artifact . | . . . . . . . . Weapon 40 | 2 1 8 3 . . 13 13 Energy Gun 1 | . . 1 . . . . . Energy Cannon 2 | . . . . . . 2 . Ballistic Gun 25 | 2 . 5 1 . . 8 9 Ballistic Cannon 1 | . . . . . . . 1 Launcher 7 | . 1 2 2 . . 2 . Special Weapon . | . . . . . . . . Impact Weapon . | . . . . . . . . Slashing Weapon 4 | . . . . . . 1 3 Piercing Weapon . | . . . . . . . . Special Melee Weapon . | . . . . . . . . Unidentified Prototypes 6 | . . 2 . . . 3 1 Parts Lost 40 | . 4 4 1 . . 13 18 Power 6 | . 1 2 . . . 1 2 Propulsion 15 | . 2 1 . . . 5 7 Utility 7 | . . . . . . 2 5 Weapon 12 | . 1 1 1 . . 5 4 Highest Loss Streak 15 | . 4 3 1 . . 6 15 To Critical Strikes . | . . . . . . . . Average Slot Usage (%) 95 | . 94 94 99 100 100 92 95 Engine 7 | . 12 9 4 . . 7 8 Core 3 | . . . 6 11 11 . 4 Leg 28 | . 26 29 33 33 33 25 28 Device 9 | . 11 11 11 11 11 11 7 Storage 9 | . 14 11 11 11 11 9 6 Processor 7 | . . 11 11 11 11 9 7 Protection 2 | . . . . . . 2 6 Ballistic Gun 15 | . 22 20 13 11 11 14 14 Launcher 3 | . 5 1 8 11 11 1 . Slashing Weapon 3 | . . . . . . 9 7 Naked Turns . | . . . . . . . . Heaviest Build 44 | 12 18 24 25 23 23 32 44 Greatest Support 70 | 20 20 30 30 30 30 40 70 Greatest Overweight (x) 8 | 1 4 . . . . 6 8 Average Overweight (x) . | . . . . . . . . Largest Inventory Capacity 10 | 8 10 10 10 10 10 10 10 Average Capacity 9 | 6 8 10 10 10 10 10 9 Most Carried 10 | 3 5 10 10 10 10 10 10 Average Carried 8 | 1 3 7 9 9 10 8 9 Final Capacity 10 | 8 10 10 10 10 10 10 5 Final Carried 10 | 1 3 10 9 10 10 10 3 Class Distribution -------------------- 59% | Mutant 40% | Scavenger-Mutant Dominant Class ---------------- Mutant | -10/Materials Scavenger-Mutant | -9/Materials Scavenger-Mutant | -9/Mines Scavenger-Mutant | -9/Exiles Scavenger-Mutant | -8/Mines Mutant | -8/Materials Mutant | -7/Factory Resources | -11 -10 -9 -9 -9 -8 -8 -7 ----------- Run | Yrd Mat Mat Min Exi Min Mat Fac Matter Collected 2552 | 202 98 649 221 . . 633 749 Remotely 599 | . . . . . . 92 507 Salvage Created 3049 | . 235 1177 170 . . 822 645 Parts 195 | . 13 82 21 . . 48 31 Haulers Intercepted 4 | . . 3 . . . 1 . Recyclers Shooed 1 | . . . . . . . 1 Parts Field Recycled . | . . . . . . . . Retrieved Matter . | . . . . . . . . Parts Self-Destructed . | . . . . . . . . Prevented . | . . . . . . . . Kills | -11 -10 -9 -9 -9 -8 -8 -7 ------- Run | Yrd Mat Mat Min Exi Min Mat Fac Combat Hostiles Destroyed 64 | . 7 23 11 . . 11 12 Melee 2 | . . . . . . 1 1 Guns 50 | . 6 21 4 . . 8 11 AOE 12 | . 1 2 7 . . 2 . Classes Destroyed 13 | . 3 5 . . . 3 2 Worker 2 | . . . . . . 2 . Builder 3 | . . 1 . . . 1 1 Tunneler 2 | . . 1 1 . . . . Hauler 4 | . . 3 . . . 1 . Recycler 4 | . . . . . . 3 1 Operator 2 | . . . . . . . 2 Watcher 4 | . 1 2 . . . . 1 Swarmer 14 | . 3 3 8 . . . . Grunt 31 | . 4 11 3 . . 8 5 Brawler 1 | . . 1 . . . . . Sentry 14 | . . 8 . . . 2 4 Hunter 3 | . . . . . . 1 2 Programmer 1 | . . . . . . . 1 Best Kill Streak 12 | . 2 12 5 . . 6 4 Combat Bots Only 9 | . 2 9 4 . . 4 4 Max Kills in Single Turn 4 | . 1 3 4 . . 3 1 Gunslinging 1 | . . 1 . . . . . Exploded 4 | . 1 1 4 . . 1 . Melee 1 | . . . . . . 1 1 Uniques/NPCs Destroyed . | . . . . . . . . Combat | -11 -10 -9 -9 -9 -8 -8 -7 -------- Run | Yrd Mat Mat Min Exi Min Mat Fac Hostile Shots Fired 695 | . 56 101 40 . . 104 394 Missed 209 | . 17 30 17 . . 25 120 Damage Taken 6250 | . 468 934 205 . . 1450 3193 Core 1224 | . 72 164 45 . . 242 701 Absorbed by Shields . | . . . . . . . . Core Remaining (%) 68 | 100 71 . . . 47 56 . Volleys Fired 283 | . 50 63 21 . . 77 72 Largest 2 | . 2 2 2 . . 2 2 Hottest 91 | . 50 53 56 . . 91 58 Shots Fired 462 | . 87 121 26 . . 101 127 Gun 440 | . 86 118 23 . . 94 119 Cannon 12 | . . . . . . 4 8 Launcher 10 | . 1 3 3 . . 3 . Special . | . . . . . . . . Kinetic 448 | . 86 118 23 . . 94 127 Thermal 4 | . . . . . . 4 . Explosive 10 | . 1 3 3 . . 3 . Electromagnetic . | . . . . . . . . Robot Hit Streak 14 | . 7 14 7 . . 11 12 Robot Miss Streak 7 | . 6 4 4 . . 5 7 Penetration Max 1 | . . . . . . . 1 Secondary Targets 5 | . 1 4 . . . . . Max Gunslinging Chain 1 | . 1 1 . . . . . Shots Hit Robots 319 | . 49 85 14 . . 70 101 Core Hits 176 | . 22 47 16 . . 35 56 Critical Kills 2 | . 1 1 . . . . . Critical Parts Destroyed 4 | . 1 1 . . . 1 1 Critical Strikes 6 | . 2 2 . . . 1 1 Destroy 6 | . 2 2 . . . 1 1 Melee Attacks 11 | . . . . . . 4 7 Impact . | . . . . . . . . Slashing 11 | . . . . . . 4 7 Piercing . | . . . . . . . . Sneak Attacks 2 | . . . . . . 2 . Combat Hostiles . | . . . . . . . . Follow-up Attacks . | . . . . . . . . Damage Inflicted 6282 | . 514 1582 568 . . 1744 1874 Guns 4465 | . 406 1200 205 . . 970 1684 Cannons 113 | . . . . . . 40 73 Explosions 1332 | . 108 382 363 . . 479 . Melee 372 | . . . . . . 255 117 Ramming . | . . . . . . . . Kinetic 4538 | . 406 1200 205 . . 970 1757 Thermal 128 | . . . . . . 128 . Explosive 1244 | . 108 382 363 . . 391 . Electromagnetic . | . . . . . . . . Impact . | . . . . . . . . Slashing 372 | . . . . . . 255 117 Piercing . | . . . . . . . . Highest Corruption 5 | . . . . . . . 5 Average Corruption 2 | . . . . . . . 2 Corruption Purged . | . . . . . . . . Corruption Blocked . | . . . . . . . . Effects 6 | . . . . . . . 6 Message Errors 3 | . . . . . . . 3 Heat Flow Errors 1 | . . . . . . . 1 Energy Discharges 1 | . . . . . . . 1 Misfires 1 | . . . . . . . 1 Overload Shots . | . . . . . . . . Overflow Damage 100 | . . . 2 . . 91 7 Projectiles 7 | . . . . . . . 7 Explosions 57 | . . . 2 . . 55 . Melee 36 | . . . . . . 36 . Knockbacks 1 | . . . . . . . 1 Impact . | . . . . . . . . Kinetic 1 | . . . . . . . 1 Secondary . | . . . . . . . . Self-Inflicted Damage 284 | . 39 42 6 . . 197 . Shots 7 | . 1 2 1 . . 3 . Rammed . | . . . . . . . . Targets Rammed . | . . . . . . . . Kicked . | . . . . . . . . Crushed . | . . . . . . . . Highest Temperature 126 | . 24 27 4 . . 45 126 Average Temperature 17 | . 12 6 2 . . 12 24 Received Heat Transfer 1629 | . 174 396 24 . . 603 432 Siege Activations . | . . . . . . . . Robots Corrupted . | . . . . . . . . Combat Hostiles . | . . . . . . . . Parts Fried . | . . . . . . . . Impact Corruptions . | . . . . . . . . Robots Melted . | . . . . . . . . Combat Hostiles . | . . . . . . . . Parts Melted . | . . . . . . . . Heat Transferred 124 | . . . . . . 124 . Parts Sabotaged . | . . . . . . . . Parts Stolen . | . . . . . . . . Parts Stripped . | . . . . . . . . Power Chain Reactions . | . . . . . . . . Alert | -11 -10 -9 -9 -9 -8 -8 -7 ------- Run | Yrd Mat Mat Min Exi Min Mat Fac Peak Influence 546 | . 165 546 510 . . 305 155 Initial 212 | . . 11 212 . . . 50 Average 158 | . 51 307 359 . . 141 70 Maximum Alert Level 2 | . . 2 2 . . 1 . Low Security (%) 68 | 100 100 25 . . 100 72 100 Level 1 19 | . . 36 58 . . 27 . Level 2 12 | . . 37 41 . . . . Level 3 . | . . . . . . . . Level 4 . | . . . . . . . . Level 5 . | . . . . . . . . High Security . | . . . . . . . . Max Security . | . . . . . . . . Squads Dispatched 14 | . . 1 . . . 2 11 Investigation 4 | . . . . . . . 4 Extermination 2 | . . . . . . . 2 Reinforcement 5 | . . 1 . . . 2 2 Assault . | . . . . . . . . Garrison 3 | . . . . . . . 3 Intercept . | . . . . . . . . Searches Triggered . | . . . . . . . . Construction Impeded 1 | . . . . . . 1 . Haulers Reinforced . | . . . . . . . . Active Scanning Responses . | . . . . . . . . Cargo Convoy Interrupts 1 | . . . . . . . 1 Stealth | -11 -10 -9 -9 -9 -8 -8 -7 --------- Run | Yrd Mat Mat Min Exi Min Mat Fac Distress Signals 8 | . 3 2 . . . 2 1 Communications Jammed . | . . . . . . . . Distress Signals . | . . . . . . . . Times Spotted 115 | . 15 30 11 . . 21 38 Peak Tracking Total 14 | . 4 7 4 . . 7 14 Tactical Retreats 4 | . 1 . 1 . . . 2 Traps | -11 -10 -9 -9 -9 -8 -8 -7 ------- Run | Yrd Mat Mat Min Exi Min Mat Fac Traps Triggered 3 | . 1 . . . . . 2 Indirectly . | . . . . . . . . Trap Hack Attempts . | . . . . . . . . Triggered . | . . . . . . . . Disarmed 4 | . . . . . . 4 . Reprogrammed . | . . . . . . . . Reused . | . . . . . . . . Traps Extracted . | . . . . . . . . Installed . | . . . . . . . . Triggered . | . . . . . . . . Machines | -11 -10 -9 -9 -9 -8 -8 -7 ---------- Run | Yrd Mat Mat Min Exi Min Mat Fac Machines Disabled 3 | . . . . . . 3 . Max in Single Turn 2 | . . . . . . 2 . Garrison Access 1 | . . . . . . 1 . Machines Repaired . | . . . . . . . . Machines Dismantled . | . . . . . . . . Machines Sabotaged . | . . . . . . . . Overloaded Fab Kills . | . . . . . . . . Hacking | -11 -10 -9 -9 -9 -8 -8 -7 --------- Run | Yrd Mat Mat Min Exi Min Mat Fac Machines Accessed 12 | . 1 2 . 1 . 2 6 Terminals 7 | . 1 2 . . . 1 3 Fabricators . | . . . . . . . . Repair Stations 1 | . . . . . . . 1 Recycling Units . | . . . . . . . . Scanalyzers 1 | . . . . . . . 1 Garrison Access 2 | . . . . . . 1 1 Total Hacks 33 | . 4 3 . 1 . 6 19 Successful 20 | . 3 2 . 1 . 4 10 Failed 13 | . 1 1 . . . 2 9 Catastrophic . | . . . . . . . . Database Lockouts . | . . . . . . . . Manual 7 | . . 2 . 1 . . 4 Terminals 20 | . 4 3 . . . 4 9 Fabricators . | . . . . . . . . Repair Stations 2 | . . . . . . . 2 Recycling Units . | . . . . . . . . Scanalyzers 6 | . . . . . . . 6 Garrison Access 4 | . . . . . . 2 2 Terminal Hacks 14 | . 3 2 . 1 . 3 5 Record 1 | . . . . . . . 1 Part Schematic 2 | . . 1 . . . . 1 Prototype ID Bank 1 | . . . . . . . 1 Alert Level 1 | . 1 . . . . . . Locate Traps 3 | . 1 . . . . 1 1 Disarm Traps 2 | . . . . . . 2 . Hauler Manifests 3 | . 1 1 . . . . 1 Derelict Proto ID Bank 1 | . . . . 1 . . . Fabricator Hacks . | . . . . . . . . Repair Station Hacks . | . . . . . . . . Recycling Unit Hacks . | . . . . . . . . Scanalyzer 5 | . . . . . . . 5 Insert Component 3 | . . . . . . . 3 Analyze 2 | . . . . . . . 2 Garrison Access Hacks 1 | . . . . . . 1 . Seal Access 1 | . . . . . . 1 . Unauthorized Hacks . | . . . . . . . . Terminals . | . . . . . . . . Fabricators . | . . . . . . . . Repair Stations . | . . . . . . . . Recycling Units . | . . . . . . . . Scanalyzers . | . . . . . . . . Garrison Access . | . . . . . . . . Data Cores Recovered . | . . . . . . . . Used . | . . . . . . . . Hacking Detections 9 | . 1 1 . . . 2 5 Full Trace Events 4 | . . . . . . 1 3 Feedback Events . | . . . . . . . . Feedback Blocked . | . . . . . . . . Robot Schematics Acquired . | . . . . . . . . Robots Built . | . . . . . . . . Authchips . | . . . . . . . . Time . | . . . . . . . . Total Robot Build Rating . | . . . . . . . . Part Schematics Acquired 4 | . . 1 . . . . 3 Parts Built . | . . . . . . . . Authchips . | . . . . . . . . Time . | . . . . . . . . Total Part Build Rating . | . . . . . . . . Parts Repaired . | . . . . . . . . Time . | . . . . . . . . Parts Recycled . | . . . . . . . . Recycled Matter . | . . . . . . . . Retrieved Matter . | . . . . . . . . Retrieved Components . | . . . . . . . . Parts Scanalyzed 2 | . . . . . . . 2 Part Schematics Acquired 2 | . . . . . . . 2 Parts Damaged . | . . . . . . . . Bothacking | -11 -10 -9 -9 -9 -8 -8 -7 ------------ Run | Yrd Mat Mat Min Exi Min Mat Fac Used RIF Installer . | . . . . . . . . Robots Hacked . | . . . . . . . . Non-combat . | . . . . . . . . Combat . | . . . . . . . . Robot Hacks Applied . | . . . . . . . . Relay Couplers Released . | . . . . . . . . Fabnet Peak Effective % . | . . . . . . . . Robots Rewired . | . . . . . . . . Allies Hacked . | . . . . . . . . Hacks Repelled . | . . . . . . . . Allies | -11 -10 -9 -9 -9 -8 -8 -7 -------- Run | Yrd Mat Mat Min Exi Min Mat Fac Total Allies 2 | . . . 2 . . . . Largest Group 2 | . . . 2 2 . . . Highest-Rated Group 43 | . . . 43 43 . . . Highest-Rated Ally 31 | . . . 31 31 . . . Total Orders . | . . . . . . . . Ally Attacks . | . . . . . . . . Total Damage . | . . . . . . . . Kills . | . . . . . . . . Allies Corrupted . | . . . . . . . . Allies Melted . | . . . . . . . . Intel | -11 -10 -9 -9 -9 -8 -8 -7 ------- Run | Yrd Mat Mat Min Exi Min Mat Fac Robot Analysis Total . | . . . . . . . . Derelict Logs Recovered 2 | . . . 2 . . . . Drone Launches . | . . . . . . . . Drone Recoveries . | . . . . . . . . Exploration | -11 -10 -9 -9 -9 -8 -8 -7 ------------- Run | Yrd Mat Mat Min Exi Min Mat Fac Turns Passed 4244 | 65 515 703 501 311 41 730 1378 Spaces Moved 2554 | 48 296 387 343 258 35 368 819 Core 26 | 12 2 . . . . 2 10 Treads . | . . . . . . . . Legs 2528 | 36 294 387 343 258 35 366 809 Wheels . | . . . . . . . . Hover . | . . . . . . . . Flight . | . . . . . . . . Fastest Speed 50 | 50 120 120 120 120 120 120 50 Average Speed 123 | 109 123 120 120 120 120 129 125 Slowest Speed 450 | 190 250 120 120 120 120 350 450 Overloaded Moves . | . . . . . . . . Propulsion Burnouts . | . . . . . . . . Robots Hopped . | . . . . . . . . Cave-ins Triggered . | . . . . . . . . Exploration Rate (%) 41 | 4 51 56 75 68 20 33 25 Regions Visited 7 Branch Regions 3 Pre-discovered Areas 1 | . . . 1 . . . . Known Exits Taken . | . . . . . . . . Unknown Exits Taken 7 | 1 1 1 1 1 1 1 . Scrap Searched 1 | . . . 1 . . . . Spaces Dug 10 | . . . . . . 10 . Terrain Destroyed 112 | . 5 14 35 . . 58 . Melee . | . . . . . . . . Projectile . | . . . . . . . . AOE 112 | . 5 14 35 . . 58 . Terrain Rammed . | . . . . . . . . Walls Destroyed . | . . . . . . . . Machines Disabled . | . . . . . . . . Actions | -11 -10 -9 -9 -9 -8 -8 -7 --------- Run | Yrd Mat Mat Min Exi Min Mat Fac Total 3218 | 60 374 515 407 259 34 528 1041 Wait 168 | . 12 16 36 . . 21 83 Move 2547 | 47 295 386 342 257 34 367 819 Hop . | . . . . . . . . Pick Up 73 | 7 9 21 2 1 . 20 13 Fast Attach 2 | . . . . . . . 2 Attach 46 | 6 6 8 2 . . 15 9 Detach . | . . . . . . . . Swap 53 | . 1 12 2 1 . 17 20 Drop 35 | . 1 9 2 . . 7 16 Fire 283 | . 50 63 21 . . 77 72 Melee 11 | . . . . . . 4 7 Ram . | . . . . . . . . Kick . | . . . . . . . . Crush . | . . . . . . . . Escape Stasis . | . . . . . . . . Rewire . | . . . . . . . . Trap . | . . . . . . . . Miscellaneous . | . . . . . . . . Route ------- -11/Scrapyard -10/Materials (discovered 2 exits: *Mat x2) -9/Materials -9/Mines (discovered 3 exits: *Mat x2 / *Exi) -9/Exiles -8/Mines -8/Materials -7/Factory History --------- Turn | Location | Event 2 | -11/Scrapyard | Met Revision 17 10 | -11/Scrapyard | Discovered new exit (range 15) 66 | -11/Scrapyard | Entered Materials 309 | -10/Materials | Build established: Mutant 428 | -10/Materials | Lost 4 parts (1p2n1w) 469 | -10/Materials | Discovered new exit (range 16) 532 | -10/Materials | Discovered new exit (range 16) 581 | -10/Materials | Entered another Materials area 581 | -9/Materials | Evolved 2 slots: Propulsion x1, Utility x1 802 | -9/Materials | Destroyed 9 combat bots 1133 | -9/Materials | Lost 3 parts (1p1n1w) 1189 | -9/Materials | Build established: Scavenger-Mutant 1253 | -9/Materials | Discovered new exit (range 14) 1284 | -9/Materials | Entered Mines 1390 | -9/Mines | Received a Rocket Launcher from a helpful Derelict 1430 | -9/Mines | Discovered new exit (range 7) 1468 | -9/Mines | Core integrity fell below 50% 1497 | -9/Mines | Discovered new exit (range 3) 1547 | -9/Mines | Learned Materials trap positions 1774 | -9/Mines | Deemed a non-threat by the Exiles lab entrance 1774 | -9/Mines | Discovered new exit (range 5) 1785 | -9/Mines | Entered Exiles 1785 | -9/Exiles | Accompanied by 2 allies 1814 | -9/Exiles | Met 8R-AWN 1815 | -9/Exiles | Led the pair of lost Derelicts to a safe place 1835 | -9/Exiles | Met EX-HEX 1873 | -9/Exiles | Met EX-BIN 1890 | -9/Exiles | Aligned with FarCom system 1891 | -9/Exiles | Given EX-Vault access code 1919 | -9/Exiles | Opened EX-Vault 1926 | -9/Exiles | Found Longsword +1 1952 | -9/Exiles | Warned to stay clear of 0b10 Research branches 1985 | -9/Exiles | Met EX-DEC 2086 | -9/Exiles | Discovered new exit (range 11) 2096 | -9/Exiles | Left Exiles lab with Longsword +1 2096 | -9/Exiles | Entered Mines 2134 | -8/Mines | Discovered new exit (range 5) 2137 | -8/Mines | Entered Materials 2137 | -8/Materials | Evolved 2 slots: Utility x1, Weapon x1 2138 | -8/Materials | Loaded intel: 17 trap records 2439 | -8/Materials | Lost 3 parts (1p1n1w) 2471 | -8/Materials | Build established: Mutant 2551 | -8/Materials | Lost 6 parts (3n1u2w) 2829 | -8/Materials | Discovered new exit (range 15) 2867 | -8/Materials | Entered Factory 2867 | -7/Factory | Evolved 2 slots: Power x1, Propulsion x1 4161 | -7/Factory | Cargo convoy interrupted 4206 | -7/Factory | Core integrity fell below 50% 4238 | -7/Factory | Core integrity fell below 20% 4245 | -7/Factory | Destroyed by P-60 Hacker with Shock Rifle Last Messages --------------- Imp. Targeting Computer destroyed. H-55 Commando destroyed. System corrupted: Heat flow error (+151). Slug penetrates Wall. Mic. Nuclear Core destroyed. Slug penetrates Wall. K-01 Serf collects debris. Slug penetrates Wall. Slug penetrates P-60 Hacker. Weapon Cycler destroyed. Slug penetrates Wall. Wall collapses. K-01 Serf collects debris. Slug penetrates Wall. Wall collapses. Penetrated by Slug. Great Axe destroyed. Slug penetrates Wall. Penetrated by Slug. U-05 Engineer builds a Door. Map ----- +----------------------------------------------------+ | ?????????????????????????????????????????????????? | | ?????????????????????????????###########?????????? | | ?????????????????????????????###########?????????? | | ?????????????????????????????## ##?????????? | | ?????????????????????????????## ##?????????? | | ?????????????????????????????## ##?????????? | | ?????????????????????????????## ##?????????? | | ???????????????????#########?## ##?????????? | | ??????????????????? ########?## ##?????????? | | ??????????????????? # ##### ##?????????? | | ??????????????????? # ##### ############ | | ??????????????????? # # # ############ | | ?????????????????? # + + ## T # | | ?????????????????? # # # ## """ # | | ?????????????????? # # # ## """ # | | ????????????????"" # ! !# # ## """ # | | ????????????????"" #= # # ## # | | ???????????????? # # # ## ! # | | ???????????????? # + # ## ] # | | ????????????????w # # # !## # | | ???##############+### # ####+#########+##### | | ???# ! """ # ###+##+## | | ???# """ "T" # ###u | | ???# """ # ### ppr | | ???# """ # ###h##/#########/############### | | ???# / ! # ##"%"# @ ! ############## | | ???###########+##|##h!h# !! # ##### | | ???????# *|%=%Y x i# ! ! # """ ###"" | | ???????# ^ !=##### # # "Y" # | | ???????#^^ !*# #### ## # " " # | | ???????#^ """[!##???# ## = # # | | ???????# ^"% =%# + ## # """ # | | ???????#^ " !#"" # ## """"" + """ ! # | | ???????# #"T # ## """"" # """ + | | ???????# !! #?" + ## """ # # | | ???????# !! #?? #### #+######## | | ???????# ! #???##?## # | | ???????# ??????############### | | ???????#" ??????############### | | ???????#%#### ????????????????????# !! | | ???????"%???##"#????????????????????# !! | | ?????? ???? ?????????????????????# !! | | ????? ???? ""?????????????????????# | | ?????# ????? ""???????############### | | ???????????? ?????????# [ ## "" | | ???????????? ?????????# # "" | | ??????????????????????# """ """ # "" | | ??????????????????????# """ """ # | | ??????????????????????# """ """ # | | ??????????????????????# + | +----------------------------------------------------+ Best States ------------- Heat Dissipation 34 Energy Generation 26 Energy Capacity 455 Matter Stores 300 Matter Capacity 300 Sight Range 16 Terrain Scan Density 10 Armor Coverage 150 Weapon Cycling 15 Evasion (%) 55 Targeting Accuracy 6 Core Analysis 6 Defensive Hacking 10 Item Schematics ----------------- Imp. Aluminum Leg | -9/Materials | Hacked Adv. ECM Suite | -7/Factory | Scanalyzed Reaction Control System | -7/Factory | Scanalyzed Imp. Carbon-fiber Leg | -7/Factory | Hacked Robot Schematics ------------------ None Fabricated ------------ Nothing Alien Tech Used ----------------- None Achievements -------------- None Challenges ------------ None Game ------ Seed ArcMasterWings Manual? 0 Play Time 00:48:28 Cumulative 16.0 hours Start 2024.07.28 @ 12:57:39 End 2024.07.28 @ 13:45:27 Sessions 1 Manual Loads 0 Difficulty Rogue Special Mode None Game No. 17 Rogue 10 Adventurer 7 Explorer 0 Win Type - Total 0 Types 0/0/0/0/0/0/0/0/0 Lore% 20 Gallery% 25 Achievement% 23 Wizard Run 0 Options --------- Layout 1 ASCII 0 Keyboard 0 Movement Mouse Keybinds 0 Fullscreen 1 Font 24/Smallcaps Map View 50x35 Zoom Use 0% Tactical HUD 0 Map Filters NONE Filters NONE Steam 1 RUN: 936e2007-ffc3-4ae2-90b7-2dd73fb1715e